Cogmind - Beta 17 @@@ ROGUE MODE // 2026.08.14 @ 17:32:59 Player: Fedop Result: Destroyed by G-47 Trooper with Particle Gun Performance ------------- Evolutions (2) 1000 Regions Visited (3) 600 Robots Destroyed (41) 205 Value Destroyed (1126) 1126 Prototype IDs (3) 60 Alien Tech Used (0) 0 Bonus (33) 33 TOTAL SCORE: 3024 Bonus ------- High Alert Combat Kills 33 Cogmind --------- Core Integrity 0/550 Matter 168/300 Energy 100/100 System Corruption 10% Temperature Cool (9) Movement Core (50) Location -8/Materials Parts ------- > --- POWER (1) -------- (None) > --- PROPULSION (3) --- (None) > --- UTILITY (5) ------ Signal Interpreter Terrain Scan Processor Hacking Suite > --- WEAPON (2) ------- Hammer > --- INVENTORY (5) ---- Advanced Weight Redist. System Improved Sensor Array Reflective Plating Advanced Beam Cannon Peak State ------------ > --- POWER ------------ Nuclear Core > --- PROPULSION ------- Improved Airjet Improved Airjet Improved Airjet > --- UTILITY ---------- Improved Sensor Array Signal Interpreter Melee Analysis Suite Utility Shielding Hacking Suite > --- WEAPON ----------- Assault Rifle High-powered Shotgun > --- INVENTORY -------- Improved Airjet Advanced Beam Cannon Mini Grenade Launcher Hammer [Rating: 34] Favorites ----------- Power Light Ion Engine Engine Light Ion Engine Power Core Nuclear Core Propulsion Hover Unit Wheel Wheel Hover Unit Hover Unit Utility Hacking Suite Device Sensor Array Storage Small Storage Unit Processor Signal Interpreter Hackware Hacking Suite Protection Utility Shielding Weapon Medium Laser Energy Gun Medium Laser Energy Cannon Advanced Beam Cannon Ballistic Gun Assault Rifle Launcher Mini Grenade Launcher Impact Weapon Hammer Build | -11 -10 -9 -8 ------- Run | Yrd Mat Mat Mat Slots Evolved 4 | . . 2 2 Power . | . . . . Propulsion 1 | . . . 1 Utility 3 | . . 2 1 Weapon . | . . . . Parts Attached 40 | 6 12 6 16 Power 6 | 1 1 1 3 Engine 4 | 1 1 1 1 Core 2 | . . . 2 Reactor . | . . . . Propulsion 12 | 2 3 1 6 Treads . | . . . . Leg . | . . . . Wheel 2 | 2 . . . Hover 10 | . 3 1 6 Flight . | . . . . Utility 11 | 1 4 3 3 Device 2 | . 1 . 1 Storage 1 | 1 . . . Processor 5 | . 2 1 2 Hackware 1 | . 1 . . Protection 2 | . . 2 . Artifact . | . . . . Weapon 11 | 2 4 1 4 Energy Gun 2 | . 2 . . Energy Cannon 1 | . . . 1 Ballistic Gun 4 | 2 . . 2 Ballistic Cannon . | . . . . Launcher 2 | . 1 1 . Special Weapon . | . . . . Impact Weapon 2 | . 1 . 1 Slashing Weapon . | . . . . Piercing Weapon . | . . . . Special Melee Weapon . | . . . . Unidentified Prototypes 3 | . . . 3 Parts Lost 21 | . . 7 14 Power 4 | . . 2 2 Propulsion 7 | . . 2 5 Utility 4 | . . 1 3 Weapon 6 | . . 2 4 Highest Loss Streak 14 | . . 7 14 To Critical Strikes . | . . . . Average Backups 3 | 1 4 4 3 Power . | . 1 . . Propulsion . | . 1 . . Utility . | . . . . Weapon 1 | . 1 1 2 Tool/Special . | . . . . Unused Backups 5 | . 2 . 3 Power 1 | . 1 . . Propulsion 1 | . 1 . . Utility 3 | . . . 3 Weapon . | . . . . Tool/Special . | . . . . Average Slot Usage (%) 83 | . 87 90 71 Engine 8 | . 13 9 2 Wheel 4 | . 12 . . Hover 16 | . 15 19 14 Device 5 | . 1 10 6 Storage 1 | . 3 . . Processor 11 | . 6 11 18 Hackware 7 | . 4 11 9 Protection 4 | . . 8 8 Energy Gun 13 | . 23 16 . Ballistic Gun 1 | . 2 . 2 Impact Weapon 4 | . 1 4 7 Peak Build Rating 34 | 6 10 12 34 Average Rating 11 | 5 7 10 19 On Entrance 6 | . 6 9 10 Avg Prop Armor Cover (%) 13 | . . . 13 Naked Turns . | . . . . Heaviest Build 15 | 13 15 9 15 Greatest Support 27 | 26 26 14 27 Greatest Overweight (x) 2 | . 2 2 2 Average Overweight (x) . | . . . . Largest Inventory Capacity 8 | 8 8 5 5 Average Capacity 5 | 7 5 5 5 Most Carried 5 | 2 5 5 5 Average Carried 3 | 1 4 4 3 Final Capacity 8 | 8 5 5 5 Final Carried 5 | 2 5 . 4 Class Distribution -------------------- 61% | Mutant 38% | Scavenger-Mutant Dominant Class ---------------- Mutant | -10/Materials Scavenger-Mutant | -9/Materials Mutant | -8/Materials Resources | -11 -10 -9 -8 ----------- Run | Yrd Mat Mat Mat Matter Collected 657 | 244 146 21 246 Remotely . | . . . . Salvage Created 1127 | . 210 154 763 Parts 66 | . 18 22 26 Haulers Intercepted 2 | . 2 . . Recyclers Shooed . | . . . . Parts Field Recycled . | . . . . Retrieved Matter . | . . . . Parts Self-Destructed . | . . . . Prevented . | . . . . Parts Restored . | . . . . Kills | -11 -10 -9 -8 ------- Run | Yrd Mat Mat Mat Combat Hostiles Destroyed 31 | . 1 13 17 Melee 1 | . . . 1 Guns 6 | . 1 3 2 AOE 24 | . . 10 14 Classes Destroyed 11 | . 4 2 5 Worker 1 | . . 1 . Builder 1 | . . . 1 Hauler 2 | . 2 . . Recycler 1 | . . . 1 Operator 1 | . 1 . . Watcher 4 | . 3 . 1 Swarmer 11 | . . 11 . Grunt 17 | . 1 2 14 Brawler 1 | . . . 1 Duelist 1 | . . . 1 Sentry 1 | . . . 1 Best Kill Streak 17 | . 2 12 17 Combat Bots Only 14 | . 1 11 14 Max Kills in Single Turn 6 | . 1 6 4 Gunslinging . | . . . . Exploded 5 | . . 5 3 Melee 1 | . . . 1 Uniques/NPCs Destroyed . | . . . . Combat | -11 -10 -9 -8 -------- Run | Yrd Mat Mat Mat Hostile Shots Fired 242 | . 6 84 152 Missed 93 | . 4 32 57 Hits 149 | . 2 52 95 Melee 1 | . . . 1 Projectile 148 | . 2 52 94 Critical Strikes 2 | . . 1 1 Damage Taken 2316 | . 21 638 1657 Core 837 | . . 279 558 Absorbed by Shields . | . . . . Redirected to Shielding 30 | . . 8 22 Core Remaining (%) 76 | 100 100 30 . Volleys Fired 44 | . 27 5 12 Largest 2 | . 2 2 2 Hottest 100 | . 100 100 55 Shots Fired 76 | . 52 8 16 Gun 68 | . 51 7 10 Cannon . | . . . . Launcher 8 | . 1 1 6 Special . | . . . . Kinetic 15 | . 5 . 10 Thermal 53 | . 46 7 . Explosive 8 | . 1 1 6 Electromagnetic . | . . . . Robot Hit Streak 8 | . 4 3 8 Robot Miss Streak 8 | . 8 1 2 Penetration Max . | . . . . Secondary Targets 1 | . . 1 . Max Gunslinging Chain 1 | . . 1 . Shots Hit Robots 56 | . 20 5 31 Core Hits 69 | . 12 11 46 Critical Kills . | . . . . Critical Parts Destroyed 2 | . . . 2 Critical Strikes 6 | . 4 . 2 Burn 4 | . 4 . . Smash 2 | . . . 2 Melee Attacks 46 | . 1 4 41 Impact 46 | . 1 4 41 Slashing . | . . . . Piercing . | . . . . Sneak Attacks . | . . . . Combat Hostiles . | . . . . Follow-up Attacks . | . . . . Damage Inflicted 3028 | . 287 897 1844 Guns 477 | . 247 38 192 Cannons . | . . . . Explosions 2112 | . 40 859 1213 Melee 439 | . . . 439 Ramming . | . . . . Kinetic 202 | . 10 . 192 Thermal 275 | . 237 38 . Explosive 2112 | . 40 859 1213 Electromagnetic . | . . . . Impact 439 | . . . 439 Slashing . | . . . . Piercing . | . . . . Highest Corruption 10 | . 2 1 10 Average Corruption 1 | . 2 1 10 Corruption Purged . | . . . . Corruption Blocked . | . . . . Effects 2 | . 1 1 . Energy Discharges 2 | . 1 1 . Overload Shots . | . . . . Overflow Damage 303 | . . 197 106 Projectiles . | . . . . Explosions 219 | . . 197 22 Melee 84 | . . . 84 Knockbacks 6 | . . . 6 Impact 6 | . . . 6 Kinetic . | . . . . Secondary . | . . . . Self-Inflicted Damage 218 | . . 102 116 Shots 5 | . . 2 3 Rammed . | . . . . Targets Rammed . | . . . . Kicked . | . . . . Crushed . | . . . . Highest Temperature 154 | . 154 47 71 Average Temperature 53 | . 59 23 41 Received Heat Transfer 924 | . 12 102 810 Siege Activations . | . . . . Martial Activations . | . . . . Shielding Activations . | . . . . Robots Disrupted . | . . . . Combat Hostiles . | . . . . Robots Corrupted . | . . . . Combat Hostiles . | . . . . Parts Fried 2 | . . . 2 Impact Corruptions 4 | . . . 4 Robots Melted . | . . . . Combat Hostiles . | . . . . Parts Melted 3 | . 3 . . Heat Transferred 1110 | . 999 111 . Parts Sabotaged . | . . . . Parts Stolen . | . . . . Parts Stripped . | . . . . Power Chain Reactions . | . . . . Alert | -11 -10 -9 -8 ------- Run | Yrd Mat Mat Mat Maximum Alert Level 2 | . . 1 2 Low Security (%) 91 | 100 100 95 78 Level 1 2 | . . 4 3 Level 2 5 | . . . 18 Level 3 . | . . . . Level 4 . | . . . . Level 5 . | . . . . High Security . | . . . . Max Security . | . . . . Peak Influence 486 | . 36 295 486 Initial 120 | . . . 120 Average 61 | . 6 27 161 Influence Increases 1397 | . 148 521 728 Destroy 0b10 Robot/C 620 | . 20 260 340 Destroy 0b10 Robot/NC 50 | . 30 5 15 Destroy Leader 122 | . 20 40 62 Successful Hack 88 | . 54 34 . Disable Machine 30 | . 15 15 . Destroy Structure 82 | . 9 32 41 Partial Spotted 15 | . . . 15 Lose Combat Pursuer 390 | . . 135 255 Influence Decreases 911 | . 148 236 527 Entered New Map 165 | . . . 165 Time Decay 495 | . 148 125 222 Lost Part 210 | . . 70 140 Purge Threat 41 | . . 41 . Squads Dispatched 7 | . 1 2 4 Investigation 1 | . . 1 . Extermination . | . . . . Reinforcement 5 | . 1 1 3 Assault . | . . . . Garrison 1 | . . . 1 Intercept . | . . . . Searches Triggered . | . . . . Construction Impeded 1 | . . . 1 Haulers Reinforced . | . . . . Active Scanning Responses . | . . . . Cargo Convoy Interrupts . | . . . . Stealth | -11 -10 -9 -8 --------- Run | Yrd Mat Mat Mat Distress Signals 7 | . 1 2 4 Communications Jammed . | . . . . Distress Signals . | . . . . Times Spotted 88 | . 9 30 49 Peak Tracking Total 17 | . 3 16 17 Tactical Retreats 10 | . . 6 4 Traps | -11 -10 -9 -8 ------- Run | Yrd Mat Mat Mat Traps Triggered 2 | . 2 . . Indirectly . | . . . . Trap Hack Attempts . | . . . . Triggered . | . . . . Disarmed . | . . . . Reprogrammed . | . . . . Reused . | . . . . Traps Extracted . | . . . . Installed . | . . . . Triggered . | . . . . Machines | -11 -10 -9 -8 ---------- Run | Yrd Mat Mat Mat Machines Disabled 2 | . 1 1 . Max in Single Turn 1 | . 1 1 . Machines Repaired . | . . . . Machines Dismantled . | . . . . Machines Sabotaged . | . . . . Overloaded Fab Kills . | . . . . Hacking | -11 -10 -9 -8 --------- Run | Yrd Mat Mat Mat Machines Accessed 13 | . 8 3 2 Terminals 10 | . 7 1 2 Fabricators . | . . . . Repair Stations . | . . . . Recycling Units 1 | . 1 . . Scanalyzers 2 | . . 2 . Garrison Access . | . . . . Total Hacks 37 | . 23 10 4 Successful 16 | . 9 7 . Failed 21 | . 14 3 4 Catastrophic 2 | . 2 . . Database Lockouts . | . . . . Manual 16 | . 14 . 2 Terminals 31 | . 22 5 4 Fabricators . | . . . . Repair Stations . | . . . . Recycling Units 1 | . 1 . . Scanalyzers 5 | . . 5 . Garrison Access . | . . . . Terminal Hacks 6 | . 3 3 . Branch Access Points 1 | . 1 . . Unreport Threat 1 | . . 1 . Locate Traps 2 | . 1 1 . Hauler Manifests 1 | . . 1 . Zone Layout 1 | . 1 . . Fabricator Hacks . | . . . . Repair Station Hacks . | . . . . Recycling Unit Hacks 1 | . 1 . . Report Inventory 1 | . 1 . . Scanalyzer 4 | . . 4 . Retrieve Study 4 | . . 4 . Garrison Access Hacks . | . . . . Unauthorized Hacks 5 | . 5 . . Terminals 5 | . 5 . . Assimilate 5 | . 5 . . Fabricators . | . . . . Repair Stations . | . . . . Recycling Units . | . . . . Scanalyzers . | . . . . Garrison Access . | . . . . Data Cores Recovered . | . . . . Used . | . . . . Hacking Detections 10 | . 7 1 2 Full Trace Events 3 | . 1 1 1 Feedback Events 1 | . . 1 . Corruption 1 | . . 1 . Feedback Blocked . | . . . . Robot Schematics Acquired . | . . . . Robots Built . | . . . . Authchips . | . . . . Time . | . . . . Total Robot Build Rating . | . . . . Part Schematics Acquired . | . . . . Parts Built . | . . . . Authchips . | . . . . Time . | . . . . Total Part Build Rating . | . . . . Part Studies Acquired 4 | . . 4 . Parts Repaired . | . . . . Time . | . . . . Parts Recycled . | . . . . Recycled Matter . | . . . . Retrieved Matter . | . . . . Retrieved Components . | . . . . Parts Scanalyzed . | . . . . Part Schematics Acquired . | . . . . Parts Damaged . | . . . . Bothacking | -11 -10 -9 -8 ------------ Run | Yrd Mat Mat Mat Used RIF Installer . | . . . . Robots Hacked . | . . . . Non-combat . | . . . . Combat . | . . . . Robot Hacks Applied . | . . . . Relay Couplers Released . | . . . . Fabnet Peak Effective % . | . . . . Robots Rewired . | . . . . Allies Hacked . | . . . . Hacks Repelled . | . . . . Allies | -11 -10 -9 -8 -------- Run | Yrd Mat Mat Mat Total Allies . | . . . . Largest Group . | . . . . Highest-Rated Group . | . . . . Highest-Rated Ally . | . . . . Total Orders . | . . . . Ally Attacks . | . . . . Total Damage . | . . . . Kills . | . . . . Allies Corrupted . | . . . . Allies Melted . | . . . . Intel | -11 -10 -9 -8 ------- Run | Yrd Mat Mat Mat Active Infowar (turns) 969 | . 289 329 351 Optics 218 | . 218 . . Sensors 751 | . 71 329 351 T.N.C. 59 | . 59 . . Robot Analysis Total . | . . . . Derelict Logs Recovered . | . . . . Drone Launches . | . . . . Drone Recoveries . | . . . . Exploration | -11 -10 -9 -8 ------------- Run | Yrd Mat Mat Mat Turns Passed 1465 | 72 561 361 471 Spaces Moved 1556 | 69 644 463 380 Core 63 | 3 2 17 41 Treads . | . . . . Legs . | . . . . Wheels 271 | 66 205 . . Hover 1222 | . 437 446 339 Flight . | . . . . Fastest Speed 42 | 50 56 56 42 Average Speed 65 | 87 67 59 67 Slowest Speed 180 | 90 150 150 180 Overloaded Moves . | . . . . Propulsion Burnouts . | . . . . Robots Hopped . | . . . . Potential Cave-ins . | . . . . Cave-ins Triggered 1 | . . . 1 Exploration Rate (%) 41 | 5 85 36 41 Regions Visited 3 Branch Regions . Pre-discovered Areas . | . . . . Known Exits Taken 1 | . . 1 . Unknown Exits Taken 2 | 1 1 . . Scrap Searched . | . . . . Spaces Dug 19 | . . 3 16 Terrain Destroyed 114 | . 9 54 51 Melee 19 | . . 3 16 Projectile . | . . . . AOE 95 | . 9 51 35 Terrain Rammed . | . . . . Walls Destroyed . | . . . . Machines Disabled . | . . . . Actions | -11 -10 -9 -8 --------- Run | Yrd Mat Mat Mat Total 1826 | 77 716 532 501 Wait 87 | . 10 48 29 Move 1553 | 68 643 462 380 Hop . | . . . . Pick Up 19 | 3 7 2 7 Fast Attach 27 | 5 9 1 12 Attach 15 | 1 2 6 6 Detach 5 | . 1 . 4 Swap 14 | . 5 3 6 Drop 16 | . 11 1 4 Fire 44 | . 27 5 12 Melee 46 | . 1 4 41 Ram . | . . . . Kick . | . . . . Crush . | . . . . Escape Stasis . | . . . . Rewire . | . . . . Trap . | . . . . Miscellaneous . | . . . . Route ------- -11/Scrapyard -10/Materials (discovered 4 exits: *Mat x3 / Min) -9/Materials -8/Materials History --------- Turn | Location | Event 13 | -11/Scrapyard | Discovered new exit (range 16) 73 | -11/Scrapyard | Entered Materials 204 | -10/Materials | Discovered new exit (range 8) 342 | -10/Materials | Build established: Mutant 469 | -10/Materials | Discovered new exit (range 10) 545 | -10/Materials | Discovered new exit (range 11) 582 | -10/Materials | Identified exit to Mines 634 | -10/Materials | Entered another Materials area 634 | -9/Materials | Evolved 2 slots: Utility x2 655 | -9/Materials | Build established: Scavenger-Mutant 977 | -9/Materials | Core integrity fell below 50% 991 | -9/Materials | Discovered new exit (range 5) 995 | -9/Materials | Identified exit to Materials 995 | -9/Materials | Entered another Materials area 995 | -8/Materials | Evolved 2 slots: Propulsion x1, Utility x1 1000 | -8/Materials | Destroyed 11 combat bots 1010 | -8/Materials | Lost 7 parts (2p2n1u2w) 1234 | -8/Materials | Build established: Mutant 1375 | -8/Materials | Core integrity fell below 50% 1403 | -8/Materials | Destroyed 14 combat bots 1408 | -8/Materials | Core integrity fell below 20% 1455 | -8/Materials | Crushed by falling debris 1455 | -8/Materials | System corruption reached 10% 1460 | -8/Materials | Garrison activated, responded to threat 1466 | -8/Materials | Destroyed by G-47 Trooper with Particle Gun Last Messages --------------- 01412_ U-05 Engineer builds a Wall. 01412_ K-01 Serf collects debris. 01412_ U-05 Engineer lays Concrete. 01420_ Acquired Imp. Sensor Array. 01422_ Lgt. Nuclear Core destroyed. 01422_ Acquired Adv. Weight Redist. System. 01424_ Imp. Airjet destroyed. 01455_ The unstable cave ceiling collapses. 01455_ Crushed by falling debris. 01455_ Melee Analysis Suite destroyed. 01455_ System corrupted by crushing effect (+5). 01455_ Utility Shielding destroyed. 01455_ System corrupted by crushing effect (+5). 01460_ Y-45 Defender calls for garrison reinforcements. 01460_ ALERT: Activating Garrison Access M001. 01462_ C-30 ARC bursts open, deploying its payload. 01462_ L-31 Rogue unfolds itself. 01462_ G-47 Trooper unfolds itself. Map ----- +----------------------------------------------------+ | ?????????????????????????????????????????????????? | | ?????????????????????????????????????????????????? | | ?????????????????????????????????????????????????? | | ?????????????????????????????????????????????????? | | ?????????????????????????????????????????????????? | | ?????????????????????????????????????????????????? | | ?????????????????????????????????????????????????? | | ?????????????????????????????????????????????????? | | ?????????????????????????????????????????????????? | | ?????????????????????????????????????????????????? | | ?????????????????????????????????????????????????? | | ?????????????????????????????????????????????????? | | ?????????????????????????????????????????????????? | | ?????????????????????????????????????????????????? | | ?????????????????????????????????????????????????? | | ?????????????????????????????????????????????????? | | ??????????????????######?????????????????????????? | | ??????????????????# #?????????????????????????? | | ??????????????????# #?????????????????????????? | | ???????????######## ###############???????????? | | ???????????/ ! # ## * T #??????????? | | ???????????# # ## Y #?????????? | | ???????????# "" # ## """ """ """????????????? | | ???????????# "G # ## """ """????????????????? | | ???????????# "" # gY """l""" """????????????? | | ?????####### ?# ##@ g g H #??????????? | | ?????# ###+######+###;#########+?????????????? | | ?????# ??????????? | | ?????# ??????????? | | ?????# ??????????? | | ?????# ##################### ###???????????? | | ?????## ##??######???????????????#?????????????? | | ??????# #? #?????????????????????????????? | | ??????# # #?????????????????????????????? | | ####### + #?????????????????????????????? | | # #?????????????????????????????? | | # #?????????????????????????????? | | !#? #?????????????????????????????? | | ! = #?? #?????????????????????????????? | | #??? #?????????????????????????????? | | #???? #?????????????????????????????? | | ##????####?????????????????????????????? | | ?????????????????????????????????? | | ?????????????????????????????????? | | ?????????????????????????????????? | | #####+######+?????????????????????????????????? | | #???? #???????????????????????????????????? | | #???"""" #???????????????????????????????????? | | ## ""S"" #???????????????????????????????????? | | ## "" "" #???????????????????????????????????? | +----------------------------------------------------+ Best States ------------- Heat Dissipation 31 Energy Generation 14 Energy Capacity 265 Matter Stores 300 Matter Capacity 300 Sight Range 18 Robot Scan Range 15 Terrain Scan Density 85 Utility Shielding 33 Evasion (%) 56 Melee Accuracy 5 Offensive Hacking 10 Item Schematics ----------------- None Robot Schematics ------------------ None Fabricated ------------ Nothing Repaired ---------- Nothing Studied --------- Hover Unit | -9/Materials | Hacked Med. Laser | -9/Materials | Hacked Hammer | -9/Materials | Hacked Mni. Grenade Launcher | -9/Materials | Hacked Alien Tech Used ----------------- None Achievements -------------- Quick And Dirty Challenges ------------ None Game ------ Seed ExperimentalZeronetStatue Manual? 0 Play Time 00:33:41 Cumulative 41.7 hours Start 2026.08.14 @ 15:27:32 End 2026.08.14 @ 17:32:59 Sessions 4 Manual Loads 0 Difficulty Rogue Special Mode None Game No. 34 Rogue 34 Adventurer 0 Explorer 0 Win Type - Total 0 Types 0/0/0/0/0/0/0/0/0/0 Lore% 14 Gallery% 26 Achievement% 21 Wizard Run 0 Options --------- Layout 1 ASCII 0 Keyboard 1 Movement Vi Keybinds 0 Fullscreen 2 Font 24/Smallcaps Map View 50x35 Zoom Use 0% Tactical HUD 1 Map Filters NONE Filters NONE Steam 1 RUN: 2d7ac8e2-0351-4d98-be80-fc1437b1cd31